bitfinex-derivatives/quotes_SOLF0:USTF0_20241127
["timestamp","ask_amount","ask_price","bid_price","bid_amount"]
[1732710660063,16.95135805,233.08,233.0,2.1455]
[1732710660260,16.95135805,233.08,232.99,2.42]
[1732710660564,2.1433,233.25,233.02,16.95135805]
[1732710660867,16.95135805,233.24,233.02,16.95135805]
[1732710661763,16.95135805,233.24,233.14,2.1442]
[1732710662162,16.95135805,233.24,233.13,2.42]
[1732710662359,19.37135805,233.28,233.13,2.42]
[1732710662770,19.37135805,233.28,233.17,2.144]
[1732710662965,16.95135805,233.24,233.13,2.42]
[1732710663563,16.95135805,233.24,233.13,4.5643]
[1732710663763,2.12164614,233.37,233.13,2.42]
[1732710663764,15.00164614,233.37,233.13,2.42]
[1732710663965,2.42,233.36,233.14,16.95135805]
[1732710664162,16.95135805,233.37,233.26,2.1431]
[1732710664363,16.95135805,233.37,233.24,2.42]
[1732710664567,16.95135805,233.37,233.22,2.42]
[1732710664767,19.09355805,233.37,233.23,2.42]
[1732710664968,19.09355805,233.37,233.14,16.95135805]
[1732710664969,19.09355805,233.37,233.22,2.42]
[1732710665171,19.09355805,233.37,233.23,2.42]
[1732710665372,19.09355805,233.37,233.23,4.5634]
[1732710666270,19.09355805,233.37,233.14,16.95135805]
[1732710666271,16.95135805,233.33,233.14,16.95135805]
[1732710666472,16.95135805,233.28,233.06,16.95135805]
[1732710666772,19.37135805,233.28,233.15,2.1441]
[1732710666967,19.37135805,233.28,233.15,2.42]
[1732710667167,12.88,233.37,233.15,19.37135805]
[1732710667362,16.95135805,233.36,233.15,19.37135805]
[1732710667562,16.95135805,233.4,233.19,16.95135805]
[1732710667962,16.95135805,233.4,233.26,2.1431]
[1732710668166,16.95135805,233.4,233.26,4.5631]
[1732710668367,16.95135805,233.4,233.26,2.42]
[1732710668368,21.51325805,233.4,233.26,2.42]
[1732710669164,16.95135805,233.36,233.15,16.95135805]
[1732710669364,16.95135805,233.36,233.16,2.42]
[1732710669570,16.95135805,233.28,233.14,2.1443]
[1732710669869,15.3,233.34,233.15,2.42]
[1732710670070,16.95135805,233.28,233.15,2.42]
[1732710670267,16.95135805,233.24,233.15,2.42]
[1732710670471,2.42,233.27,233.15,2.42]
[1732710671669,4.5631,233.27,233.15,2.42]
[1732710671873,2.42,233.27,233.15,2.42]
[1732710672577,16.95135805,233.28,233.16,2.1441]
[1732710673074,16.95135805,233.28,233.15,2.42]
[1732710673373,2.42,233.3,233.15,2.42]
[1732710673775,16.95135805,233.28,233.15,2.42]
[1732710674670,2.1436,233.21,233.12,0.29417]
[1732710674880,2.42,233.23,233.12,0.29417]
[1732710676076,19.37135805,233.28,233.12,2.71417]
[1732710676676,19.37135805,233.28,233.16,2.1441]
[1732710676877,16.95135805,233.52,233.12,2.71417]
[1732710676878,16.95135805,233.32,233.13,16.95135805]
[1732710677079,16.95135805,233.36,233.25,2.1432]
[1732710677581,2.42,233.39,233.24,2.42]
[1732710677776,2.142,233.39,233.24,2.42]
[1732710678380,2.142,233.39,233.27,2.1431]
[1732710678582,2.1423,233.36,233.24,2.42]
[1732710680280,2.1421,233.38,233.24,4.5633]
[1732710680481,16.95135805,233.4,233.24,2.42]
[1732710680873,2.142,233.39,233.26,2.1432]
[1732710681084,16.95135805,233.4,233.24,2.42]
[1732710682279,2.142,233.39,233.27,2.1431]
[1732710682478,16.95135805,233.36,233.13,16.95135805]
[1732710682675,19.37135805,233.36,233.14,2.42]
[1732710682879,2.1427,233.32,233.19,2.1438]
[1732710683181,2.42,233.36,233.2,2.42]
[1732710683375,2.142,233.39,233.21,19.37135805]
[1732710683578,16.95135805,233.42,233.22,2.42]
[1732710683780,16.95135805,233.46,233.25,16.95135805]
[1732710683981,2.1415,233.45,233.29,16.95135805]
[1732710684178,16.95135805,233.46,233.3,2.42]
[1732710685477,16.95135805,233.46,233.36,2.1422]
[1732710685685,19.37135805,233.5,233.37,2.42]
[1732710685985,2.1413,233.46,233.37,2.42]
[1732710687075,27.51699452,233.42,233.32,2.42]
[1732710687485,2.1418,233.41,233.32,4.5626]
[1732710688884,2.1419,233.4,233.32,2.42]
[1732710689084,27.51699452,233.42,233.32,2.42]
[1732710689387,40.70028523,233.51,233.35,2.1423]
[1732710689388,2.1415,233.45,233.35,2.1423]
[1732710689782,27.51699452,233.46,233.32,2.42]
[1732710690185,43.12028523,233.51,233.39,2.142]
[1732710690382,43.12028523,233.51,233.38,2.42]
[1732710691181,2.1412,233.47,233.39,2.1419]
[1732710692684,2.1412,233.47,233.4,2.1419]
[1732710692884,27.51699452,233.48,233.38,2.42]
[1732710693087,27.51699452,233.48,233.41,2.1418]
[1732710694191,2.1413,233.47,233.41,2.1418]
[1732710695789,29.65779452,233.52,233.45,2.1414]
[1732710695991,40.39699452,233.56,233.38,2.42]
[1732710696287,2.1409,233.51,233.44,2.1414]
[1732710697990,2.1409,233.51,233.38,2.42]
[1732710698190,2.1409,233.51,233.42,2.1416]
[1732710698884,2.1409,233.51,233.43,2.1416]
[1732710699289,2.1408,233.52,233.44,2.48]
[1732710699593,40.39699452,233.56,233.45,2.48]
[1732710700886,2.1409,233.51,233.45,2.48]
[1732710701684,40.39699452,233.56,233.45,2.48]
[1732710701888,2.141,233.5,233.41,2.48]
[1732710702091,2.141,233.5,233.4,2.48]
[1732710702588,2.1413,233.47,233.4,2.48]
[1732710702796,40.39699452,233.52,233.39,2.48]
[1732710702996,27.51699452,233.56,233.39,2.48]
[1732710703197,2.1408,233.52,233.39,2.48]
[1732710703489,27.51699452,233.56,233.39,2.48]
[1732710703691,2.1405,233.55,233.44,2.1415]
[1732710703890,2.1405,233.55,233.45,2.48]
[1732710704292,2.1403,233.57,233.49,2.141]
[1732710705298,2.1402,233.59,233.5,2.1409]
[1732710705488,27.51699452,233.6,233.5,2.1409]
[1732710705693,2.1403,233.58,233.5,2.1409]
[1732710705997,2.1403,233.58,233.51,2.1408]
[1732710706398,27.51699452,233.6,233.51,2.1408]
[1732710706801,9.50061541,233.57,233.51,2.1408]
[1732710707397,9.50061541,233.56,233.49,2.141]
[1732710707703,9.50061541,233.55,233.49,2.141]
[1732710707901,2.1404,233.56,233.45,2.48]
[1732710708102,9.49224394,233.55,233.45,2.48]
[1732710708305,9.49224394,233.55,233.47,2.1412]
[1732710708499,9.49224394,233.55,233.45,2.48]
[1732710708693,9.49224394,233.58,233.45,2.48]
[1732710709306,16.9158079,233.55,233.42,2.48]
[1732710709599,16.9158079,233.55,233.36,2.1422]
[1732710709600,16.9158079,233.51,233.36,2.1422]
[1732710709804,2.1415,233.45,233.34,2.48]
[1732710710197,16.9158079,233.47,233.36,2.1422]
[1732710710397,2.1411,233.48,233.34,2.48]
[1732710710601,9.48121867,233.47,233.36,2.1422]
[1732710710807,9.48121867,233.48,233.34,2.48]
[1732710710998,9.48243895,233.47,233.34,2.48]
[1732710711195,9.48375841,233.53,233.41,2.1417]
[1732710711403,9.48336184,233.52,233.42,2.48]
[1732710711702,11.62406184,233.53,233.43,2.48]
[1732710711901,9.4819598,233.52,233.43,2.48]
[1732710712101,9.4819598,233.53,233.43,2.48]
[1732710712298,9.4819598,233.52,233.43,2.48]
[1732710712502,9.4819598,233.51,233.43,2.48]
[1732710712803,2.48,233.54,233.43,2.48]
[1732710712996,2.1409,233.51,233.43,2.48]
[1732710713500,2.1409,233.51,233.37,16.9158079]
[1732710713701,2.1408,233.52,233.42,2.1416]
[1732710714005,2.48,233.54,233.38,2.48]
[1732710714298,2.1409,233.52,233.42,2.1416]
[1732710714499,2.48,233.58,233.43,2.48]
[1732710714699,9.48054796,233.57,233.44,2.48]
[1732710714907,2.1405,233.55,233.46,2.1413]
[1732710715503,29.7958079,233.59,233.45,2.48]
[1732710715695,2.48,233.6,233.43,2.48]
[1732710715696,16.9158079,233.55,233.43,2.48]
[1732710715903,9.47977793,233.54,233.43,2.48]
[1732710716202,22.35977793,233.54,233.43,2.48]
[1732710716404,9.47977793,233.53,233.43,2.48]
[1732710716600,2.1402,233.59,233.43,2.48]
[1732710716806,17.46295967,233.58,233.43,2.48]
[1732710716996,9.48313483,233.58,233.43,2.48]
[1732710717202,9.48313483,233.57,233.5,2.141]
[1732710717806,9.48313483,233.57,233.49,4.621]
[1732710718007,12.88,233.62,233.42,16.9158079]
[1732710718201,7.98649359,233.61,233.43,2.48]
[1732710718400,17.47750803,233.61,233.43,2.48]
[1732710718606,2.1403,233.57,233.48,2.1411]
[1732710719005,2.1403,233.57,233.43,2.48]
[1732710719207,22.37101444,233.6,233.43,2.48]
[1732710719399,9.49101444,233.59,233.42,16.9158079]
[1732710719604,2.1405,233.55,233.47,2.1412]
[1732710719913,9.49076298,233.54,233.47,2.1412]
[1732710721513,8.00371676,233.53,233.47,2.1412]
[1732710721804,9.49076298,233.52,233.38,16.9158079]
[1732710722010,39.28657088,233.52,233.35,2.48]
[1732710722210,8.00371676,233.51,233.36,2.48]
[1732710722411,2.1413,233.47,233.38,2.142]
[1732710722607,8.00371676,233.46,233.36,2.42]
[1732710722802,16.9158079,233.44,233.25,16.9158079]
[1732710723007,10.42371676,233.43,233.29,16.9158079]
[1732710723314,17.49447974,233.42,233.3,2.42]
[1732710723506,9.49076298,233.41,233.35,2.1422]
[1732710723701,9.49076298,233.4,233.36,2.42]
[1732710723902,4.5612,233.47,233.37,2.42]
[1732710724110,17.54484373,233.46,233.29,16.9158079]
[1732710724309,17.54484373,233.45,233.25,16.9158079]
[1732710724507,34.46065163,233.44,233.26,2.42]
[1732710724711,17.54484373,233.43,233.26,2.42]
[1732710724907,17.54484373,233.42,233.26,2.42]
[1732710725111,17.54484373,233.41,233.26,2.42]
[1732710725411,17.54484373,233.4,233.26,2.42]
[1732710725607,17.54484373,233.39,233.28,2.1429]
[1732710725812,2.42,233.47,233.21,22.85113628]
[1732710725813,17.54484373,233.38,233.21,22.85113628]
[1732710726009,2.1424,233.34,233.25,2.42]
[1732710726208,17.54903936,233.33,233.25,2.42]
[1732710726408,9.52772073,233.32,233.25,2.42]
[1732710726610,19.68935719,233.31,233.25,2.42]
[1732710726808,17.54655719,233.3,233.21,5.93532838]
[1732710727008,17.54655719,233.29,233.21,5.93532838]
[1732710727212,8.01883646,233.28,233.21,5.93532838]
[1732710727403,9.52772073,233.29,233.21,5.93532838]
[1732710727608,9.52772073,233.28,233.21,5.93532838]
[1732710727808,9.52772073,233.28,233.26,2.1431]
[1732710728213,9.52772073,233.35,233.24,2.42]
[1732710728414,9.52772073,233.34,233.24,4.5633]
[1732710728815,9.52772073,233.34,233.24,2.42]
[1732710729017,9.52772073,233.33,233.24,2.42]
[1732710729217,2.42,233.39,233.24,2.42]
[1732710729515,2.1424,233.34,233.24,2.42]
[1732710729719,9.52804005,233.33,233.24,2.42]
[1732710730117,9.52804005,233.33,233.21,5.93532838]
[1732710730319,9.52804005,233.35,233.21,8.35532838]
[1732710730620,16.9158079,233.32,233.21,5.93532838]
[1732710730820,2.1432,233.26,233.21,5.93532838]
[1732710731214,2.1431,233.27,233.21,5.93532838]
[1732710731418,2.42,233.31,233.21,5.93532838]
[1732710731617,9.51689569,233.3,233.21,5.93532838]
[1732710732115,16.9158079,233.28,233.21,5.93532838]
[1732710732417,16.9158079,233.24,233.21,5.93532838]
[1732710732612,2.1435,233.22,233.21,5.93532838]
[1732710732817,16.9158079,233.24,233.21,5.93532838]
[1732710733223,2.1435,233.22,233.21,5.93532838]
[1732710736119,2.1435,233.22,233.14,2.1442]
[1732710736323,16.9158079,233.24,233.11,0.3532]
[1732710736522,2.1438,233.2,233.11,0.3532]
[1732710736824,2.1438,233.2,233.14,2.1442]
[1732710737524,2.1438,233.2,233.11,0.3532]
[1732710737823,16.9158079,233.24,233.11,0.3532]
[1732710738121,16.9158079,233.2,233.11,0.3532]
[1732710738315,16.9158079,233.16,233.11,0.3532]
[1732710738515,2.1444,233.12,233.11,0.3532]
[1732710739722,19.0602079,233.12,233.11,0.3532]
[1732710739929,16.9158079,233.12,232.99,2.1456]
[1732710740127,16.9158079,233.12,232.94,2.42]
[1732710740724,16.9158079,233.04,232.84,16.9158079]
[1732710740925,2.1456,233.0,232.85,2.42]
[1732710741221,2.1456,233.0,232.86,2.42]
[1732710741523,2.42,233.03,232.88,16.9158079]
[1732710741524,2.1454,233.02,232.88,16.9158079]
[1732710741827,2.42,233.09,232.92,16.9158079]
[1732710742025,16.9158079,233.11,232.93,2.42]
[1732710742026,2.1453,233.03,232.93,2.42]
[1732710742226,2.42,233.08,232.94,2.1461]
[1732710742425,16.9158079,233.07,232.93,2.42]
[1732710742621,2.1453,233.03,232.93,2.42]
[1732710742830,16.9158079,233.07,232.93,2.42]
[1732710743028,16.9158079,233.07,232.92,2.1463]
[1732710743328,16.9158079,233.07,232.89,2.42]
[1732710744131,16.9158079,233.07,232.93,2.1462]
[1732710744630,2.1454,233.02,232.94,2.1461]
[1732710744826,4.5654,233.02,232.94,2.1461]
[1732710745430,2.1451,233.05,232.97,2.1458]
[1732710746027,2.1455,233.01,232.89,2.42]
[1732710746229,2.1455,233.01,232.93,2.1462]
[1732710746427,2.42,233.0,232.89,2.42]
[1732710746634,2.1458,232.98,232.89,2.1465]
[1732710746836,2.1458,232.98,232.85,2.42]
[1732710747434,2.1458,232.98,232.9,2.1464]
[1732710748232,16.9158079,233.07,232.85,2.42]
[1732710748533,2.42,233.06,232.85,2.42]
[1732710748731,2.1453,233.04,232.93,2.1462]
[1732710748935,2.42,233.06,232.93,2.1462]
[1732710749331,2.1454,233.03,232.94,2.1461]
[1732710749735,2.42,233.06,232.91,2.42]
[1732710750733,16.9158079,233.03,232.87,2.42]
[1732710751340,2.1461,232.95,232.84,2.42]
[1732710751737,2.42,232.97,232.84,2.147]
[1732710751936,2.42,232.97,232.81,2.42]
[1732710752143,16.9158079,232.95,232.81,2.42]
[1732710752344,2.1463,232.92,232.83,2.1471]
[1732710752747,16.9158079,232.95,232.81,2.42]
[1732710752946,2.1463,232.93,232.81,2.42]
[1732710753249,2.42,232.97,232.81,2.42]
[1732710754051,2.1464,232.92,232.83,2.1471]
[1732710754345,2.42,232.97,232.81,2.42]
[1732710754538,2.1462,232.93,232.84,2.1469]
[1732710755443,2.1461,232.95,232.81,2.42]
[1732710756142,2.42,232.97,232.81,2.42]
[1732710756948,2.1462,232.94,232.81,2.42]
[1732710757347,2.146,232.96,232.81,2.42]
[1732710757546,2.42,232.97,232.81,2.42]
[1732710758045,16.9158079,233.04,232.81,2.42]
[1732710758344,45.36262227,233.09,232.88,16.9158079]
[1732710758548,45.36262227,233.09,232.89,2.4]
[1732710758750,19.3158079,233.09,232.89,2.4]
[1732710759341,19.3158079,233.09,232.92,16.9158079]
[1732710759649,19.3158079,233.09,232.93,2.4]
[1732710760151,19.3158079,233.09,232.93,4.5462]
[1732710760849,19.3158079,233.09,232.93,2.4]
[1732710761844,2.1452,233.05,232.93,2.4]
[1732710762050,19.3158079,233.09,232.93,2.4]
[1732710763150,16.9158079,233.09,232.93,2.4]
[1732710763549,2.1451,233.05,232.95,2.146]
[1732710763946,2.1451,233.05,232.95,4.546]
[1732710764142,2.145,233.06,232.96,2.1459]
[1732710764345,16.9158079,233.09,232.95,2.4]
[1732710764544,2.4,233.1,232.84,4.2941]
[1732710764545,16.9158079,233.05,232.91,2.4]
[1732710764855,2.1457,232.99,232.84,16.9158079]
[1732710765155,2.4,233.04,232.85,2.4]
[1732710765451,2.4,233.04,232.89,2.1466]
[1732710766055,2.4,233.04,232.88,2.1467]
[1732710766449,2.1457,232.99,232.84,16.9158079]
[1732710766649,2.4,233.04,232.88,2.1466]
[1732710767047,2.1459,232.97,232.85,2.4]
[1732710767252,16.9158079,233.01,232.85,4.5469]
[1732710767454,2.4,233.0,232.85,2.4]
[1732710768055,2.4,233.0,232.87,2.1467]
[1732710768559,2.1458,232.98,232.87,2.1467]
[1732710768858,2.4,233.04,232.85,2.4]
[1732710769048,16.9158079,233.05,232.88,16.9158079]
[1732710769357,2.4,233.07,232.96,2.1459]
[1732710769755,2.4,233.07,232.95,2.4]
[1732710770361,2.1452,233.05,232.95,4.5459]
[1732710770549,2.1452,233.05,232.95,2.4]
[1732710770752,2.4,233.07,232.95,2.4]
[1732710770954,2.145,233.07,232.97,2.1457]
[1732710771551,2.145,233.06,232.95,4.5459]
[1732710771751,16.9158079,233.05,232.84,16.9158079]
[1732710771954,16.9158079,233.05,232.85,3.47380106]
[1732710772154,2.1455,233.01,232.91,2.1464]
[1732710772355,2.1455,233.01,232.91,4.5464]
[1732710772656,16.9158079,233.05,232.91,2.4]
[1732710772856,2.1454,233.02,232.92,2.1462]
[1732710773650,2.1454,233.02,232.93,2.1462]
[1732710774458,2.1454,233.02,232.91,2.4]
[1732710775254,2.1454,233.02,232.92,2.4]
[1732710775762,2.1455,233.01,232.92,2.4]
[1732710776053,16.9158079,233.05,232.92,2.4]
[1732710776255,9.50055443,233.04,232.92,2.4]
[1732710776456,2.1454,233.02,232.92,2.1463]
[1732710776661,16.9158079,233.05,232.91,2.4]
[1732710776857,9.50067045,233.04,232.91,2.4]
[1732710777962,2.1455,233.01,232.91,4.5464]
[1732710779354,9.52664497,233.0,232.91,4.5464]
[1732710779556,2.1457,232.99,232.91,2.4]
[1732710779753,16.9158079,233.0,232.87,2.4]
[1732710779963,9.52664181,232.99,232.87,2.4]
[1732710780162,11.67234181,232.99,232.9,2.1465]
[1732710780365,12.76943868,232.99,232.9,2.1465]
[1732710780560,12.76943868,232.99,232.87,2.4]
[1732710780760,12.76943868,232.99,232.89,2.1465]
[1732710780958,2.1458,232.98,232.87,2.4]
[1732710781458,10.62373868,232.99,232.81,10.62373868]
[1732710781658,2.146,232.95,232.82,2.4]
[1732710782064,10.62373868,232.96,232.82,2.4]
[1732710782361,9.53945772,232.95,232.84,10.62373868]
[1732710782566,9.54988483,232.94,232.84,10.62373868]
[1732710782764,2.4,232.97,232.82,2.4]
[1732710783069,9.55013992,232.96,232.82,2.4]
[1732710783364,9.55013992,232.96,232.86,2.1468]
[1732710784961,11.69613992,232.96,232.86,2.1468]
[1732710785162,9.55013992,232.95,232.86,2.1468]
[1732710785369,9.55013992,232.95,232.85,2.38]
[1732710785666,9.55013992,232.94,232.85,2.38]
[1732710785866,9.55013992,232.93,232.83,4.5271]
[1732710786068,9.55013992,232.92,232.78,10.62373868]
[1732710786263,2.1465,232.9,232.79,3.90502966]
[1732710786465,2.1465,232.9,232.81,2.1472]
[1732710786659,10.62373868,232.93,232.79,0.45098]
[1732710786660,9.55814837,232.89,232.79,0.45098]
[1732710786864,10.62373868,232.93,232.79,2.83098]
[1732710787061,17.59900365,232.92,232.79,2.83098]
[1732710787260,9.55811453,232.91,232.81,10.62373868]
[1732710787467,9.55811453,232.95,232.81,10.62373868]
[1732710788069,11.70411453,232.95,232.81,10.62373868]
[1732710788268,9.55811453,232.95,232.85,2.1469]
[1732710788663,9.55811453,232.95,232.85,4.5269]
[1732710788863,9.55811453,232.94,232.85,4.5269]
[1732710789063,9.55811453,232.94,232.85,2.38]
[1732710789264,9.55811453,232.93,232.85,2.38]
[1732710789564,9.55811453,232.92,232.81,2.38]
[1732710789771,9.55811453,232.91,232.81,2.38]
[1732710789966,2.1466,232.89,232.81,2.38]
[1732710793072,2.1465,232.91,232.81,4.5273]
[1732710793273,9.54064407,232.9,232.81,4.5273]
[1732710793680,10.62373868,232.93,232.82,2.1472]
[1732710793970,9.54296753,232.92,232.82,2.1472]
[1732710794172,11.68926753,232.92,232.82,2.1472]
[1732710794372,9.54296753,232.91,232.81,2.38]
[1732710794574,2.1463,232.92,232.81,2.38]
[1732710795572,9.54021581,232.91,232.81,2.38]
[1732710795772,9.54021581,232.91,232.83,2.147]
[1732710795973,11.68661581,232.91,232.81,2.38]
[1732710796170,9.54021581,232.9,232.83,2.1471]
[1732710796371,10.62373868,232.96,232.81,13.00373868]
[1732710796568,17.56369374,232.95,232.84,10.62373868]
[1732710796767,9.53868231,232.94,232.84,10.62373868]
[1732710796975,9.53868231,232.93,232.84,10.62373868]
[1732710797174,9.54101172,232.98,232.87,10.62373868]
[1732710797373,9.54061439,233.0,232.91,2.1463]
[1732710797569,17.56681189,232.99,232.9,10.62373868]
[1732710797773,9.54061439,232.99,232.9,10.62373868]
[1732710798073,10.62373868,233.05,232.96,2.1459]
[1732710798271,8.0273017,233.04,232.95,2.38]
[1732710798473,10.62373868,233.08,232.96,13.00373868]
[1732710798769,9.54122444,233.04,232.97,2.38]
[1732710798976,8.02853462,233.03,232.97,2.38]
[1732710799174,10.62373868,233.02,232.87,10.62373868]
[1732710799480,8.02392546,233.01,232.88,2.38]
[1732710799678,8.02392546,233.01,232.89,2.1466]
[1732710799980,11.68682444,233.0,232.88,2.38]
[1732710800176,8.02392546,232.99,232.88,2.38]
[1732710800378,9.54122444,232.98,232.88,4.5266]
[1732710800578,9.54122444,232.98,232.88,2.38]
[1732710800778,9.54122444,232.99,232.88,2.38]
[1732710800980,9.54122444,233.01,232.88,2.38]
[1732710801183,8.022878,233.0,232.88,2.38]
[1732710801781,9.54122444,232.99,232.88,2.38]
[1732710802185,9.54122444,233.04,232.88,2.38]
[1732710802382,17.55824784,233.03,232.88,2.38]
[1732710802680,9.53548172,233.02,232.93,10.62373868]
[1732710802981,10.62373868,233.08,232.94,2.38]
[1732710803175,17.55998557,233.07,232.94,2.38]
[1732710803373,17.55998557,233.06,232.97,2.1458]
[1732710803577,9.53716393,233.05,232.94,2.38]
[1732710804381,9.53716393,233.04,232.98,2.1456]
[1732710804683,9.53716393,233.04,232.94,2.38]
[1732710805081,9.53716393,233.07,232.99,10.62373868]
[1732710805279,9.53716393,233.11,233.0,2.38]
[1732710805475,8.02120561,233.1,233.05,2.1451]
[1732710805677,9.53716393,233.09,233.05,2.1451]
[1732710806184,10.62373868,233.15,233.05,2.1451]
[1732710806378,9.53068186,233.14,233.0,2.38]
[1732710806585,8.01867001,233.13,233.0,2.38]
[1732710806975,8.01867001,233.13,233.03,2.1452]
[1732710807181,9.53068186,233.12,233.0,2.38]
[1732710807378,9.53068186,233.12,233.02,10.62373868]
[1732710807585,9.53068186,233.11,233.05,2.145]
[1732710807788,9.53068186,233.14,233.02,10.62373868]
[1732710808274,9.53068186,233.14,233.0,2.38]
[1732710808275,9.53068186,233.14,233.05,10.62373868]
[1732710808477,9.53068186,233.14,233.06,2.38]
[1732710808679,9.53068186,233.14,233.08,10.62373868]
[1732710809279,9.53068186,233.17,233.06,2.38]
[1732710809587,10.62373868,233.15,233.06,2.38]
[1732710809784,9.52073106,233.14,233.06,2.38]
[1732710809986,9.52073106,233.14,233.06,4.525]
[1732710810486,9.52073106,233.14,233.06,2.38]
[1732710810987,8.00426412,233.13,233.06,2.38]
[1732710811187,9.52073106,233.12,233.06,2.38]
[1732710811986,9.52073106,233.14,233.06,2.38]
[1732710812285,17.52395733,233.13,233.06,2.38]
[1732710812486,9.52073106,233.12,233.06,2.38]
[1732710812685,9.52073106,233.11,233.06,2.38]
[1732710812886,9.52073106,233.1,233.06,2.38]
[1732710813088,10.62373868,233.15,233.06,2.38]
[1732710813282,17.51328733,233.14,233.06,2.38]
[1732710813481,9.51113335,233.13,233.06,2.38]
[1732710813684,9.51113335,233.12,233.06,2.38]
[1732710813885,10.62373868,233.18,233.06,2.38]
[1732710814092,17.51222117,233.17,233.06,2.38]
[1732710814384,17.51222117,233.16,233.06,2.38]
[1732710814587,17.51222117,233.15,233.06,2.38]
[1732710814890,9.51047938,233.14,233.06,2.38]
[1732710815094,9.51047938,233.13,233.06,2.38]
[1732710815282,9.51047938,233.12,233.06,2.38]
[1732710815590,9.51047938,233.11,233.06,2.38]
[1732710815791,2.1442,233.16,233.06,2.38]
[1732710815990,17.50019198,233.15,233.06,2.38]
[1732710816190,9.50397987,233.14,233.06,2.38]
[1732710816385,9.50397987,233.13,233.06,2.38]
[1732710816581,9.50397987,233.12,233.06,2.38]
[1732710816788,10.62373868,233.18,233.06,2.38]
[1732710817089,17.49414514,233.17,233.06,2.38]
[1732710817285,17.49414514,233.16,233.06,2.38]
[1732710817486,17.49414514,233.15,233.06,2.38]
[1732710817688,9.50069404,233.14,233.06,2.38]
[1732710817883,9.50069404,233.15,233.06,4.525]
[1732710818088,9.50069404,233.14,233.06,4.525]
[1732710818391,9.50069404,233.13,233.06,4.525]
[1732710818588,9.50069404,233.12,233.06,2.38]
[1732710818787,10.62373868,233.18,233.06,2.38]
[1732710818988,17.486975,233.17,233.06,2.38]
[1732710819192,17.486975,233.16,233.06,2.38]
[1732710819389,17.486975,233.15,233.06,2.38]
[1732710819586,17.486975,233.14,233.06,2.38]
[1732710819787,9.49680332,233.13,233.06,2.38]
[1732710819991,10.62373868,233.18,233.06,2.38]
[1732710819992,9.49680332,233.12,233.06,2.38]
[1732710820190,12.76793868,233.15,233.06,2.38]
[1732710820392,9.49637963,233.14,233.06,2.38]
[1732710820698,10.62373868,233.12,232.9,0.26609]
[1732710820990,2.36,233.15,232.92,10.62373868]
[1732710820991,10.62373868,233.09,232.92,10.62373868]
[1732710821187,9.49637963,233.08,232.92,10.62373868]
[1732710821487,9.49637963,233.08,232.9,0.26609]
[1732710821488,10.62373868,233.03,232.93,2.36]
[1732710821687,2.1454,233.02,232.92,4.5062]
[1732710822186,10.62373868,233.03,232.92,4.5062]
[1732710822591,9.49110032,233.02,232.93,2.1462]
[1732710822793,9.49110032,233.02,232.92,2.36]
[1732710823388,10.62373868,232.97,232.9,0.26609]
[1732710823587,10.62373868,232.94,232.9,0.26609]
[1732710823987,2.36,232.96,232.9,0.26609]
[1732710824188,10.62373868,232.97,232.9,0.26609]
[1732710826693,10.62373868,233.0,232.9,0.26609]
[1732710827591,2.1457,232.99,232.9,0.26609]
[1732710829192,2.1458,232.98,232.9,0.26609]
[1732710829390,10.62373868,232.97,232.9,0.26609]
[1732710829993,2.1461,232.95,232.9,0.26609]
[1732710830193,10.62373868,232.97,232.9,0.26609]
[1732710834597,10.62373868,232.93,232.9,0.26609]
[1732710835397,2.1463,232.92,232.9,0.26609]
[1732710835898,10.62373868,232.93,232.9,0.26609]